fUSD/lending_fUSD_20250305
["ID","MTS","AMOUNT","RATE_DAILY","PERIOD"]
[355443632,1741168245912,-500.0,0.00011366,2]
[355443633,1741168245922,-1663.84,0.00011366,2]
[355443634,1741168245931,-1844.39,0.00011366,2]
[355443635,1741168245940,-500.0,0.00011366,2]
[355443636,1741168245950,-747.65,0.00011366,2]
[355443637,1741168245960,-23795.6,0.00011366,2]
[355443638,1741168245970,-3225.96,0.00011366,2]
[355443639,1741168245979,-1574.23,0.00011366,2]
[355443640,1741168245989,-2125.84,0.00011366,2]
[355443641,1741168245999,-1343.79,0.00011366,2]
[355443642,1741168246009,-590.24,0.00011366,2]
[355443643,1741168246018,-3358.41,0.00011366,2]
[355443644,1741168246027,-500.0,0.00011366,2]
[355443645,1741168246036,-6466.46,0.00011366,2]
[355443646,1741168246046,-936.79,0.00011366,2]
[355443647,1741168246055,-1441.82,0.00011366,2]
[355443648,1741168246064,-500.0,0.00011367,2]
[355443649,1741168246074,-304.23310645,0.00011367,2]
[355443650,1741168246084,-562.44,0.00011367,2]
[355443651,1741168246093,-500.0,0.00011367,2]
[355443652,1741168246103,-654.41,0.00011367,2]
[355443653,1741168246113,-659.66,0.00011367,2]
[355443654,1741168246122,-500.0,0.00011367,2]
[355443655,1741168246132,-511.83,0.00011367,2]
[355443656,1741168246141,-500.0,0.00011367,2]
[355443657,1741168246151,-803.89,0.00011367,2]
[355443658,1741168246160,-515.33210116,0.00011367,2]
[355443659,1741168246169,-500.0,0.00011367,2]
[355443661,1741168246179,-500.0,0.00011367,2]
[355443663,1741168246188,-506.43686377,0.00011367,2]
[355443664,1741168246198,-500.0,0.00011367,2]
[355443666,1741168246207,-500.0,0.00011367,2]
[355443667,1741168246217,-500.0,0.00011367,2]
[355443668,1741168246226,-1051.48,0.00011367,2]
[355443669,1741168246235,-453.25884392,0.00011367,2]
[355443670,1741168246245,-500.0,0.00011367,2]
[355443671,1741168246254,-503.43762021,0.00011367,2]
[355443672,1741168246264,-500.0,0.00011367,2]
[355443673,1741168246273,-745.48,0.00011367,2]
[355443674,1741168246283,-1074.51,0.00011367,2]
[355443675,1741168246292,-500.0,0.00011367,2]
[355443676,1741168246302,-1693.5,0.00011367,2]
[355443677,1741168246311,-650.83,0.00011367,2]
[355443678,1741168246321,-521.94,0.00011367,2]
[355443679,1741168246331,-500.0,0.00011367,2]
[355443680,1741168246340,-1713.98,0.00011367,2]
[355443681,1741168246350,-740.94,0.00011367,2]
[355443682,1741168246359,-508.5,0.00011367,2]
[355443683,1741168246368,-2443.91,0.00011367,2]
[355443684,1741168246377,-2660.87,0.00011367,2]
[355443685,1741168246387,-500.0,0.00011367,2]
[355443686,1741168246397,-2011.61,0.00011367,2]
[355443687,1741168246406,-4100.22,0.00011367,2]
[355443688,1741168246415,-521.85,0.00011367,2]
[355443689,1741168246424,-7541.27,0.00011367,2]
[355443690,1741168246434,-695.4,0.00011367,2]
[355443691,1741168246443,-500.0,0.00011367,2]
[355443692,1741168246452,-2065.92,0.00011367,2]
[355443693,1741168246461,-500.0,0.00011367,2]
[355443694,1741168246470,-500.0,0.00011367,2]
[355443695,1741168246479,-500.0,0.00011367,2]
[355443696,1741168246488,-500.0,0.00011367,2]
[355443697,1741168246497,-2542.12,0.00011367,2]
[355443698,1741168246506,-1151.9,0.00011367,2]
[355443699,1741168246515,-500.0,0.00011367,2]
[355443700,1741168246525,-2447.03,0.00011367,2]
[355443701,1741168246534,-466.06044443,0.00011367,2]
[355443702,1741168246544,-500.0,0.00011367,2]
[355443703,1741168246553,-1900.84,0.00011367,2]
[355443704,1741168246563,-2782.58,0.00011367,2]
[355443705,1741168246572,-500.0,0.00011367,2]
[355443706,1741168246585,-758.77,0.00011367,2]
[355443707,1741168246595,-625.72,0.00011367,2]
[355443708,1741168246605,-1030.48348503,0.00011367,2]
[355443709,1741168246650,-288.3342848,0.00011367,2]
[355443710,1741168246662,-987.15048313,0.00011367,2]
[355443711,1741168246674,-1690.71174704,0.00011367,2]
[355443712,1741168246683,-767.54,0.00011367,2]
[355443713,1741168246693,-172.23585296,0.00011367,2]
[355443714,1741168246704,-543.66972802,0.00011367,2]
[355443715,1741168282067,1793.9436,0.00010158,2]
[355443719,1741168458711,730.49,8.522e-05,2]
[355443722,1741168506602,162.0,8.522e-05,3]
[355443723,1741168547490,-2372.60725768,0.00010339,2]
[355443729,1741168689583,359.0,0.000201,120]
[355443731,1741168695578,-800.0,0.00010339,2]
[355443736,1741168759809,-163.99,0.00010254,2]
[355443737,1741168759832,-1886.02274232,0.00010339,2]
[355443738,1741168759855,-1674.73,0.00010357,2]
[355443739,1741168759875,-3889.88,0.0001039,2]
[355443740,1741168759898,-300.0,0.00010406,2]
[355443741,1741168759919,-7144.28,0.00010407,2]
[355443742,1741168759940,-2255.29,0.00010433,2]
[355443743,1741168759962,-10685.80725768,0.00010433,2]
[355443744,1741168804957,-300.0,0.00010325,2]
[355443745,1741168804982,-943.42,0.00010327,2]
[355443746,1741168805007,-23900.0,0.00010327,2]
[355443747,1741168805033,-249.30141142,0.00010433,2]
[355443748,1741168805073,-1000.0,0.00010447,2]
[355443749,1741168805102,-150.0,0.0001046,2]
[355443750,1741168805133,-490.13,0.00010461,2]
[355443751,1741168805157,-463.18,0.00010461,2]
[355443752,1741168805183,-499.99,0.00010461,2]
[355443753,1741168805208,-550.0,0.00010476,2]
[355443754,1741168805230,-4827.66,0.00010476,2]
[355443755,1741168805257,-999.99,0.00010476,2]
[355443756,1741168805282,-2088.1121249,0.00010476,2]
[355443757,1741168805306,-150.0,0.00010491,7]
[355443758,1741168805331,-681.83720608,0.00010786,2]
[355443759,1741168863941,745.7304122,9.5e-05,2]
[355443760,1741168941900,815.1809,0.00010227,2]
[355443761,1741168947083,525.0,8.274e-05,7]
[355443762,1741168947105,384517.230239,8.274e-05,7]
[355443763,1741169146825,6187.57180558,8.274e-05,7]
[355443764,1741169274849,21057.3750002,8.274e-05,7]
[355443765,1741169275433,1529.313592,8.274e-05,7]
[355443775,1741169427041,2000.0,0.00010133,2]
[355443778,1741169431828,-250.0,0.0001034,2]
[355443779,1741169431838,-45.95831041,0.00010346,2]
[355443780,1741169431851,-110.62168959,0.00010346,2]
[355443781,1741169431861,-1500.0,0.00010356,2]
[355443782,1741169431871,-156.58,0.00010392,2]
[355443783,1741169431881,-156.58,0.00010438,2]
[355443784,1741169431891,-156.58,0.00010484,2]
[355443785,1741169431902,-156.58,0.0001053,2]
[355443786,1741169431912,-156.58,0.00010575,2]
[355443787,1741169431922,-156.58,0.00010621,2]
[355443788,1741169431932,-156.58,0.00010667,2]
[355443789,1741169431942,-5465.19,0.000107,2]
[355443790,1741169431951,-156.58,0.00010713,2]
[355443791,1741169431961,-156.58,0.00010759,2]
[355443792,1741169431974,-48.65279392,0.00010786,2]
[355443793,1741169431984,-160.0,0.00010786,3]
[355443794,1741169431994,-156.58,0.00010805,2]
[355443795,1741169432003,-156.58,0.00010851,2]
[355443796,1741169432013,-156.58,0.00010897,2]
[355443797,1741169432022,-156.58,0.00010943,2]
[355443798,1741169432040,-156.58,0.00010989,2]
[355443799,1741169432052,-433.48384815,0.00010991,2]
[355443800,1741169432061,-650.6486175,0.00011,2]
[355443801,1741169432071,-3362.23410471,0.00011005,2]
[355443804,1741169432836,-1363.14612562,0.00011005,2]
[355443805,1741169432846,-4725.38023033,0.00011026,2]
[355443806,1741169432857,-156.58,0.00011035,2]
[355443807,1741169432866,-4725.38023033,0.00011038,2]
[355443808,1741169432883,-548.14,0.00011069,2]
[355443809,1741169432893,-156.58,0.00011081,2]
[355443810,1741169432903,-150.0,0.00011127,2]
[355443811,1741169432912,-156.58,0.00011127,2]
[355443812,1741169432921,-156.58,0.00011173,2]
[355443813,1741169432931,-1096.26,0.0001118,2]
[355443814,1741169432940,-250.0,0.00011224,2]
[355443815,1741169432949,-3879.19235,0.0001125,2]
[355443816,1741169432959,-3879.19235,0.0001125,2]
[355443817,1741169432969,-1467.46066,0.0001125,2]
[355443818,1741169432981,-4000.0,0.0001125,2]
[355443819,1741169432991,-163.4313,0.00011251,2]
[355443820,1741169433000,-2636.54123694,0.00011259,2]
[355443821,1741169433010,-4579.90248197,0.0001126,2]
[355443822,1741169433020,-2136.0683,0.00011261,2]
[355443823,1741169433029,-176.12819233,0.00011264,2]
[355443824,1741169433039,-2500.0,0.00011264,2]
[355443825,1741169433051,-19095.2479,0.00011265,2]
[355443826,1741169433062,-28000.0,0.00011265,2]
[355443827,1741169433071,-1030.4538,0.00011265,2]
[355443828,1741169433081,-314.77523901,0.00011265,2]
[355443829,1741169433091,-168.96678325,0.00011267,2]
[355443830,1741169433101,-1000.0,0.00011267,2]
[355443831,1741169433111,-1467.46066,0.0001127,2]
[355443832,1741169433120,-2636.5412369,0.00011306,2]
[355443833,1741169433129,-1467.46066,0.0001131,2]
[355443834,1741169433140,-548.13,0.00011339,2]
[355443835,1741169433150,-1467.46067,0.0001135,2]
[355443836,1741169433160,-2636.5412369,0.00011353,2]
[355443837,1741169433170,-220.34405726,0.00011358,2]
[355443838,1741169433180,-2428.879,0.00011359,2]
[355443839,1741169433190,-203.847,0.00011359,2]
[355443840,1741169433200,-745.4272155,0.00011361,2]
[355443841,1741169433210,-741.1441638,0.00011361,2]
[355443842,1741169433220,-18839.5069019,0.00011361,2]
[355443843,1741169433230,-884.4003778,0.00011361,2]
[355443844,1741169433240,-1761.21,0.00011363,2]
[355443845,1741169433249,-3145.85,0.00011363,2]
[355443846,1741169433259,-1502.02,0.00011363,2]
[355443847,1741169433269,-1375.62,0.00011363,2]
[355443848,1741169433279,-1086.94,0.00011363,2]
[355443849,1741169433288,-500.0,0.00011363,2]
[355443850,1741169433298,-1767.54,0.00011363,2]
[355443851,1741169433307,-500.0,0.00011363,2]
[355443852,1741169433317,-500.37736184,0.00011363,2]
[355443853,1741169433326,-276.50250012,0.00011363,2]
[355443854,1741169433336,-716.5,0.00011363,2]
[355443855,1741169433346,-2461.92,0.00011363,2]
[355443856,1741169433356,-3091.54,0.00011363,2]
[355443857,1741169433365,-722.93,0.00011363,2]
[355443858,1741169433374,-1400.21,0.00011363,2]
[355443859,1741169433384,-1287.8,0.00011363,2]
[355443860,1741169433395,-4489.2,0.00011363,2]
[355443861,1741169433404,-2264.47,0.00011363,2]
[355443862,1741169433414,-3218.47,0.00011363,2]
[355443863,1741169433424,-500.0,0.00011363,2]
[355443864,1741169433434,-1594.52,0.00011363,2]
[355443865,1741169433443,-897.75,0.00011363,2]
[355443866,1741169433453,-1259.41,0.00011363,2]
[355443867,1741169433463,-1381.75,0.00011363,2]
[355443868,1741169433473,-1057.97,0.00011363,2]
[355443869,1741169433482,-16356.83248737,0.00011363,2]
[355443870,1741169433497,-6447.28751263,0.00011363,2]
[355443871,1741169433507,-380.58702719,0.00011363,2]
[355443872,1741169436979,873.78,8.564e-05,2]
[355443878,1741169437763,-873.78,0.00010828,2]
[355443879,1741169437775,-8020.12,0.00011255,2]
[355443892,1741169439947,-8257.03503016,0.00011255,2]
[355443893,1741169440127,-1180.82964998,0.00011255,2]
[355443894,1741169440343,-0.03292431,0.00011255,2]
[355443902,1741169444558,-2026.8290587,0.00011255,2]
[355443903,1741169444572,-3306.89943346,0.00011255,2]
[355443934,1741169445821,-714.981678,0.00011255,2]
[355443936,1741169445833,-4149.42125983,0.00011255,2]
[355443943,1741169445921,-266.43681,0.00011255,2]
[355444214,1741169474027,2372.60725767,8.274e-05,7]
[355444215,1741169665332,158636.956493,8.274e-05,7]
[355444216,1741169667532,16092.0454896,8.274e-05,7]
[355444217,1741170060978,153.3,0.00010205,2]
[355444218,1741170073778,250.0,9.934e-05,2]
[355444219,1741170114539,150.0,7.928e-05,2]
[355444223,1741170187497,2529.31,9.939e-05,2]
[355444224,1741170215256,4400.0,9.92e-05,2]
[355444225,1741170258247,902.18,9.899e-05,2]
[355444226,1741170264789,964.43,9.985e-05,2]
[355444228,1741170319987,5388.54825109,9e-05,2]
[355444229,1741170335994,24070.05107957,8e-05,2]
[355444230,1741170354394,34691.50263362,6.94e-05,2]
[355444231,1741170366474,707.56884907,8e-05,2]
[355444232,1741170457392,2000.0,9.953e-05,2]
[355444233,1741170474056,1201.64384592,0.0001,2]
[355444234,1741170484126,1189.2061073,9.5e-05,2]
[355444235,1741170503314,1855.18637277,0.0001,2]
[355444236,1741170510542,10429.04633286,9.828e-05,2]
[355444238,1741170515443,2626.88755412,0.0001,2]
[355444256,1741170573240,150.0,9.95e-05,7]
[355444257,1741170604283,160.0,0.0001,3]
[355444268,1741170631885,-153.3,0.00010251,2]
[355444272,1741170631895,-166.68,0.00010285,2]
[355444274,1741170631904,-153.3,0.00010296,2]
[355444275,1741170631913,-300.0,0.00010314,2]
[355444276,1741170631925,-6668.57600017,0.00010315,2]
[355444277,1741170631938,-14239.34905105,0.00010315,2]
[355444278,1741170632326,-2992.07494878,0.00010315,2]
[355444279,1741170632335,-153.3,0.00010341,2]
[355444280,1741170632345,-1015.31298998,0.00010341,2]
[355444283,1741170632385,-979.11134051,0.00010341,2]
[355444285,1741170632395,-1000.0,0.00010343,2]
[355444287,1741170632406,-150.0,0.00010355,2]
[355444289,1741170632415,-153.3,0.00010387,2]
[355444291,1741170632429,-2231.18,0.00010387,2]
[355444294,1741170632439,-153.3,0.00010432,2]
[355444296,1741170632448,-153.3,0.00010477,2]
[355444297,1741170632458,-153.3,0.00010523,2]
[355444299,1741170632467,-176.06,0.00010543,2]
[355444301,1741170632477,-153.3,0.00010568,2]
[355444304,1741170632487,-200.0,0.000106,3]
[355444306,1741170632496,-153.3,0.00010614,2]
[355444308,1741170632506,-153.3,0.00010659,2]
[355444311,1741170632516,-500.0,0.000107,3]
[355444313,1741170632526,-153.3,0.00010704,2]
[355444315,1741170632536,-153.3,0.0001075,2]
[355444317,1741170632545,-153.3,0.00010795,2]
[355444319,1741170632555,-987.50294317,0.000108,2]
[355444320,1741170632564,-259.25404921,0.000108,3]
[355444323,1741170632575,-440.74595079,0.000108,3]
[355444325,1741170632585,-153.3,0.0001084,2]
[355444327,1741170632595,-153.3,0.00010886,2]
[355444329,1741170632604,-1000.0,0.000109,3]
[355444331,1741170632613,-150.0,0.000109,2]
[355444333,1741170632623,-153.3,0.00010931,2]
[355444335,1741170632632,-153.3,0.00010976,2]
[355444337,1741170632641,-6100.11200372,0.00010996,2]
[355444407,1741170637820,-414.26349789,0.00010996,2]
[355444408,1741170637882,-3670.89135946,0.00010996,2]
[355444409,1741170637892,-10185.26686107,0.00010996,2]
[355444410,1741170637902,-550.0,0.00011,2]
[355444411,1741170637911,-350.9333344,0.00011007,2]
[355444412,1741170637922,-153.3,0.00011022,2]
[355444413,1741170637934,-355.1212383,0.00011047,2]
[355444414,1741170637943,-10185.26686107,0.00011054,2]
[355444415,1741170637952,-234.93,0.00011062,2]
[355444416,1741170637962,-234.91,0.00011063,2]
[355444417,1741170637971,-234.91,0.00011065,2]
[355444418,1741170637981,-205.53041066,0.00011072,2]
[355444419,1741170637991,-205.53041066,0.00011075,2]
[355444420,1741170638001,-205.53041066,0.00011083,2]
[355444421,1741170638011,-355.1212383,0.00011085,2]
[355444422,1741170638020,-355.1212383,0.0001109,2]
[355444423,1741170638030,-902.18,0.00011136,2]
[355444424,1741170638040,-671.26566702,0.00011154,2]
[355444425,1741170638050,-6632.6596,0.00011155,2]
[355444426,1741170638060,-407.7669,0.00011155,2]
[355444427,1741170638071,-223.0207,0.00011155,2]
[355444428,1741170638080,-313.0516,0.00011155,2]
[355444429,1741170638091,-267.3567,0.00011155,2]
[355444430,1741170638101,-8417.7751,0.00011155,2]
[355444431,1741170638111,-3890.538,0.00011155,2]
[355444432,1741170638120,-190.57135463,0.00011157,2]
[355444433,1741170638129,-147.36125541,0.00011164,2]
[355444434,1741170638141,-3677.21557392,0.00011164,2]
[355444435,1741170638152,-2191.98313856,0.00011164,2]
[355444436,1741170638162,-1141.543,0.00011164,2]
[355444437,1741170638175,-611.9363,0.00011164,2]
[355444438,1741170638185,-7995.9743,0.00011164,2]
[355444439,1741170638194,-939.64,0.0001118,2]
[355444440,1741170638204,-6016.55996781,0.00011221,2]
[355444441,1741170638213,-5189.1426565,0.00011235,2]
[355444443,1741170638223,-315.11039709,0.00011235,2]
[355444444,1741170638233,-17733.0711,0.00011251,2]
[355444445,1741170638243,-2121.1659,0.00011251,2]
[355444446,1741170638253,-34633.73915275,0.00011255,2]
[355444447,1741170638288,-7064.87636845,0.00011255,2]
[355444448,1741170638300,-4509.6,0.00011255,2]
[355444449,1741170638311,-1364.70276617,0.00011255,2]
[355444450,1741170638321,-161.86592247,0.00011262,2]
[355444451,1741170638331,-1708.66,0.00011263,2]
[355444452,1741170638340,-3035.61,0.00011263,2]
[355444453,1741170638350,-1.13668008,0.00011263,2]
[355444454,1741170638361,-1459.13331992,0.00011263,2]
[355444455,1741170638371,-507.43134008,0.00011263,2]
[355444456,1741170638385,-831.70865992,0.00011263,2]
[355444457,1741170638395,-794.49134008,0.00011263,2]
[355444458,1741170638406,-256.28865992,0.00011263,2]
[355444459,1741170638415,-1960.47668008,0.00011263,2]
[355444461,1741170638438,-371.32331992,0.00011263,2]
[355444463,1741170638447,-202.85025927,0.00011263,2]
[355444464,1741170639079,-297.14974073,0.00011263,2]
[355444465,1741170639088,-203.8915932,0.00011263,2]
[355444466,1741170639098,-384.48562847,0.00011263,2]
[355444467,1741170639108,-1714.73,0.00011263,2]
[355444468,1741170639117,-2395.4,0.00011263,2]
[355444469,1741170639127,-707.48,0.00011263,2]
[355444470,1741170639136,-713.64,0.00011263,2]
[355444471,1741170639145,-2983.56,0.00011263,2]
[355444472,1741170639155,-1380.09,0.00011263,2]
[355444473,1741170639164,-4334.35,0.00011263,2]
[355444474,1741170639176,-1254.97,0.00011263,2]
[355444475,1741170639186,-2190.95,0.00011263,2]
[355444476,1741170639195,-3113.34,0.00011263,2]
[355444477,1741170639205,-1548.91,0.00011263,2]
[355444478,1741170639215,-187.99209899,0.00011263,2]
[355444479,1741170639240,-444.18790101,0.00011263,2]
[355444480,1741170639250,-500.0,0.00011263,2]
[355444481,1741170639259,-738.05229469,0.00011263,2]
[355444487,1741170639892,-122.29770531,0.00011263,2]
[355444488,1741170639902,-365.22786966,0.00011263,2]
[355444489,1741170639914,-323.02213034,0.00011263,2]
[355444490,1741170639925,-539.01,0.00011263,2]
[355444491,1741170639934,-1227.77,0.00011263,2]
[355444492,1741170639943,-599.48454452,0.00011263,2]
[355444493,1741170639959,-724.68545548,0.00011263,2]
[355444494,1741170639968,-621.34,0.00011263,2]
[355444495,1741170639977,-1435.62649088,0.00011263,2]
[355444496,1741170639988,-1718.34805364,0.00011263,2]
[355444497,1741170639999,-6833.47370333,0.00011263,2]
[355444498,1741170640010,-997.65756837,0.00011263,2]
[355444499,1741170640021,-11193.76418378,0.00011263,2]
[355444500,1741170640030,-1034.72,0.00011263,2]
[355444501,1741170640040,-1508.64,0.00011263,2]
[355444502,1741170640049,-1071.97,0.00011263,2]
[355444503,1741170640059,-627.14,0.00011263,2]
[355444504,1741170640068,-168.96678325,0.00011264,2]
[355444505,1741170640078,-4520.39791294,0.00011264,2]
[355444506,1741170640102,-893.97477981,0.00011264,2]
[355444507,1741170640387,-400.15737426,0.00011264,2]
[355444508,1741170640428,-607.944495,0.00011264,2]
[355444509,1741170640439,-5007.455,0.00011264,2]
[355444510,1741170640451,-538.49795999,0.00011264,2]
[355444511,1741170641023,-1747.5,0.00011264,2]
[355444524,1741170643115,-8020.12,0.00011253,2]
[355444525,1741170643125,-55922.776878,0.00011264,2]
[355444526,1741170643135,-6300.4274,0.00011264,2]
[355444527,1741170643145,-36343.1393,0.00011264,2]
[355444528,1741170643154,-2037.27,0.00011278,2]
[355444529,1741170643163,-1030.18,0.00011278,2]
[355444530,1741170643172,-710.41,0.00011278,2]
[355444531,1741170643183,-6380.96,0.00011278,2]
[355444532,1741170643191,-1646.51,0.00011278,2]
[355444533,1741170643201,-2083.49,0.00011278,2]
[355444534,1741170643211,-1642.56,0.00011278,2]
[355444535,1741170643222,-730.9,0.00011278,2]
[355444536,1741170643232,-2381.91,0.00011278,2]
[355444537,1741170643242,-153.273256,0.00011278,2]
[355444538,1741170643251,-2702.06,0.00011278,2]
[355444539,1741170643261,-1927.8,0.00011278,2]
[355444540,1741170643270,-4052.31,0.00011278,2]
[355444541,1741170643279,-7227.05,0.00011278,2]
[355444542,1741170643289,-221.394491,0.00011278,2]
[355444543,1741170643298,-1979.84,0.00011278,2]
[355444544,1741170643308,-6978.99,0.00011278,2]
[355444545,1741170643317,-2436.2,0.00011278,2]
[355444546,1741170643326,-1103.91,0.00011278,2]
[355444547,1741170643335,-2345.07,0.00011278,2]
[355444548,1741170643345,-2222.2,0.00011278,2]
[355444550,1741170643354,-1821.64,0.00011278,2]
[355444551,1741170643364,-3900.6,0.00011278,2]
[355444552,1741170643373,-2732.25,0.00011278,2]
[355444553,1741170643388,-4658.54,0.00011278,2]
[355444554,1741170643397,-6223.17,0.00011278,2]
[355444555,1741170643406,-2489.65,0.00011278,2]
[355444556,1741170643416,-377.65522837,0.00011278,2]
[355444557,1741170643429,-2631.71,0.00011278,2]
[355444558,1741170643438,-1957.66,0.00011278,2]
[355444559,1741170643449,-11534.24,0.00011278,2]
[355444561,1741170643458,-6016.55996781,0.00011279,2]
[355444562,1741170643468,-5189.14265642,0.00011284,2]
[355444563,1741170643477,-1318.0,0.000113,2]
[355444564,1741170643487,-354.45313096,0.000113,2]
[355444565,1741170643496,-354.45313087,0.000113,2]
[355444567,1741170643505,-354.45313087,0.000113,2]
[355444568,1741170643514,-354.45313087,0.000113,2]
[355444570,1741170643524,-354.45313087,0.000113,2]
[355444572,1741170643533,-354.45313087,0.000113,2]
[355444573,1741170643543,-163.078,0.0001131,2]
[355444574,1741170643552,-2625.774,0.0001131,2]
[355444575,1741170643561,-354.45313087,0.00011314,2]
[355444576,1741170643571,-200.0,0.00011331,2]
[355444577,1741170643580,-5189.14265642,0.00011334,2]
[355444578,1741170643589,-179.28972268,0.00011334,2]
[355444579,1741170643598,-500.0,0.00011334,2]
[355444580,1741170643607,-432.9261745,0.00011334,2]
[355444581,1741170643617,-195482.02363678,0.00011335,2]
[355444582,1741170643626,-500.0,0.00011335,2]
[355444583,1741170643635,-783.29,0.00011335,2]
[355444584,1741170643644,-824.77,0.00011335,2]
[355444585,1741170643654,-973.21,0.00011335,2]
[355444586,1741170643664,-500.0,0.00011335,2]
[355444587,1741170643673,-544.85,0.00011335,2]
[355444588,1741170643683,-1249.46,0.00011335,2]
[355444589,1741170643693,-822.25,0.00011335,2]
[355444590,1741170643702,-1243.85,0.00011335,2]
[355444591,1741170643711,-668.57,0.00011335,2]
[355444592,1741170643721,-613.41,0.00011335,2]
[355444593,1741170643731,-590.97,0.00011335,2]
[355444594,1741170643740,-708.97,0.00011335,2]
[355444595,1741170643750,-601.0,0.00011335,2]
[355444596,1741170643759,-969.56,0.00011335,2]
[355444597,1741170643768,-1080.87,0.00011335,2]
[355444598,1741170643777,-609.02,0.00011335,2]
[355444599,1741170643787,-500.0,0.00011335,2]
[355444600,1741170643796,-500.0,0.00011335,2]
[355444601,1741170643805,-579.88,0.00011335,2]
[355444602,1741170643814,-785.64,0.00011335,2]
[355444603,1741170643823,-500.0,0.00011335,2]
[355444604,1741170643834,-156.18670103,0.00011335,2]
[355444605,1741170643843,-1244.08,0.00011335,2]
[355444606,1741170643852,-500.0,0.00011335,2]
[355444607,1741170643861,-500.0,0.00011335,2]
[355444608,1741170643871,-151.0,0.00011335,2]
[355444609,1741170643880,-683.09,0.00011335,2]
[355444610,1741170643890,-500.0,0.00011335,2]
[355444611,1741170643899,-659.72,0.00011335,2]
[355444612,1741170643908,-500.0,0.00011335,2]
[355444613,1741170643918,-569.47,0.00011335,2]
[355444614,1741170643928,-500.0,0.00011335,2]
[355444615,1741170643937,-500.0,0.00011335,2]
[355444616,1741170643946,-500.0,0.00011335,2]
[355444617,1741170643955,-709.12,0.00011335,2]
[355444618,1741170643965,-500.0,0.00011335,2]
[355444619,1741170643974,-693.57,0.00011335,2]
[355444620,1741170643983,-500.0,0.00011335,2]
[355444621,1741170643992,-935.15,0.00011335,2]
[355444622,1741170644001,-500.0,0.00011335,2]
[355444623,1741170644010,-1595.3,0.00011335,2]
[355444624,1741170644019,-591.71,0.00011335,2]
[355444625,1741170644029,-637.98,0.00011335,2]
[355444626,1741170644038,-924.61,0.00011335,2]
[355444627,1741170644047,-1106.61,0.00011335,2]
[355444628,1741170644056,-658.9,0.00011335,2]
[355444629,1741170644065,-593.46,0.00011335,2]
[355444630,1741170644074,-653.3,0.00011335,2]
[355444631,1741170644083,-924.18,0.00011335,2]
[355444632,1741170644092,-500.0,0.00011335,2]
[355444633,1741170644102,-1716.59,0.00011335,2]
[355444634,1741170644111,-1116.6,0.00011335,2]
[355444635,1741170644122,-525.82,0.00011335,2]
[355444636,1741170644131,-554.07,0.00011335,2]
[355444637,1741170644141,-873.15,0.00011335,2]
[355444638,1741170644150,-650.76,0.00011335,2]
[355444639,1741170644159,-1769.51,0.00011335,2]
[355444640,1741170644169,-500.0,0.00011335,2]
[355444641,1741170644180,-597.31,0.00011335,2]
[355444642,1741170644189,-1862.34,0.00011335,2]
[355444643,1741170644199,-1512.92,0.00011335,2]
[355444644,1741170644208,-1817.79,0.00011335,2]
[355444645,1741170644218,-1414.0,0.00011335,2]
[355444646,1741170644228,-500.0,0.00011335,2]
[355444647,1741170644238,-933.83,0.00011335,2]
[355444648,1741170644247,-2661.11,0.00011335,2]
[355444649,1741170644257,-1006.29,0.00011335,2]
[355444650,1741170644266,-500.0,0.00011335,2]
[355444651,1741170644275,-2274.04,0.00011335,2]
[355444652,1741170644285,-1515.9,0.00011335,2]
[355444653,1741170644295,-5796.05,0.00011335,2]